fUSD/lending_fUSD_20260518
["ID","MTS","AMOUNT","RATE_DAILY","PERIOD"]
[422542469,1779047440000,-2400.1,0.000111,2]
[422542472,1779047440000,-513442.49266687,0.000111,2]
[422542470,1779047440000,-391.6760658,0.000111,2]
[422542471,1779047440000,-1025.49280924,0.000111,2]
[422542474,1779047440000,-5000.0,0.000111,2]
[422542467,1779047440000,-22045.31669326,0.000111,2]
[422542473,1779047440000,-1928.64335307,0.000111,2]
[422542475,1779047440000,-417.72054126,0.000111,2]
[422542483,1779047440000,-500.0,0.00011229,2]
[422542477,1779047440000,-682.54,0.00011151,2]
[422542486,1779047440000,-555589.1104398,0.0001123,2]
[422542487,1779047440000,-151.0,0.0001123,2]
[422542485,1779047440000,-500.0,0.00011229,2]
[422542488,1779047440000,-151.0,0.0001123,2]
[422542482,1779047440000,-500.0,0.00011229,2]
[422542478,1779047440000,-29964.16918207,0.0001119,2]
[422542479,1779047440000,-318.59405335,0.0001122,2]
[422542476,1779047440000,-826.6247334,0.0001113,2]
[422542480,1779047440000,-14170.89,0.00011222,2]
[422542509,1779047440000,-156.72,0.00011654,2]
[422542546,1779047440000,-500.0,0.00013698,2]
[422542503,1779047440000,-150.99,0.0001123,2]
[422542550,1779047440000,-500.0,0.00013698,2]
[422542549,1779047440000,-500.0,0.00013698,2]
[422542540,1779047440000,-500.0,0.00013698,2]
[422542541,1779047440000,-478.0,0.00013698,2]
[422542547,1779047440000,-500.0,0.00013698,2]
[422542542,1779047440000,-349.33158592,0.00013698,2]
[422542559,1779047440000,-500.0,0.00013698,2]
[422542545,1779047440000,-500.0,0.00013698,2]
[422542544,1779047440000,-500.0,0.00013698,2]
[422542538,1779047440000,-500.0,0.00013698,2]
[422542543,1779047440000,-500.0,0.00013698,2]
[422542553,1779047440000,-500.0,0.00013698,2]
[422542551,1779047440000,-500.0,0.00013698,2]
[422542554,1779047440000,-500.0,0.00013698,2]
[422542556,1779047440000,-411.12,0.00013698,2]
[422542560,1779047440000,-500.0,0.00013698,2]
[422542555,1779047440000,-500.0,0.00013698,2]
[422542557,1779047440000,-500.0,0.00013698,2]
[422542552,1779047440000,-500.0,0.00013698,2]
[422542558,1779047440000,-500.0,0.00013698,2]
[422542548,1779047440000,-500.0,0.00013698,2]
[422542539,1779047440000,-500.0,0.00013698,2]
[422542505,1779047440000,-151.0,0.00011297,2]
[422542534,1779047440000,-587.0,0.00013399,2]
[422542535,1779047440000,-2351.0,0.00013428,2]
[422542513,1779047440000,-150.0,0.00012,2]
[422542516,1779047440000,-5000.0,0.0001217,2]
[422542517,1779047440000,-420.0,0.00012194,2]
[422542528,1779047440000,-5173.23734276,0.00013,2]
[422542519,1779047440000,-173.07,0.00012329,2]
[422542526,1779047440000,-150.0,0.00012618,2]
[422542520,1779047440000,-169.41,0.00012425,2]
[422542525,1779047440000,-157.36,0.00012592,2]
[422542518,1779047440000,-1680.0,0.00012208,2]
[422542527,1779047440000,-16776.16048546,0.00012667,2]
[422542521,1779047440000,-826.62473338,0.0001243,2]
[422542522,1779047440000,-2000.0,0.00012447,2]
[422542524,1779047440000,-500.0,0.00012519,2]
[422542529,1779047440000,-170.95,0.00013032,2]
[422542530,1779047440000,-5411.57887691,0.0001305,2]
[422542531,1779047440000,-16776.16048546,0.00013222,2]
[422542532,1779047440000,-433.0,0.00013308,2]
[422542533,1779047440000,-157.36,0.00013379,2]
[422542536,1779047440000,-500.0,0.00013698,2]
[422542523,1779047440000,-311.18060663,0.000125,2]
[422542537,1779047440000,-500.0,0.00013698,2]
[422542616,1779047441000,-549.88,0.00013698,2]
[422542612,1779047441000,-500.0,0.00013698,2]
[422542606,1779047441000,-500.0,0.00013698,2]
[422542603,1779047441000,-500.0,0.00013698,2]
[422542597,1779047441000,-500.0,0.00013698,2]
[422542593,1779047441000,-500.0,0.00013698,2]
[422542595,1779047441000,-500.0,0.00013698,2]
[422542596,1779047441000,-500.0,0.00013698,2]
[422542594,1779047441000,-500.0,0.00013698,2]
[422542591,1779047441000,-508.58794179,0.00013698,2]
[422542602,1779047441000,-500.0,0.00013698,2]
[422542598,1779047441000,-500.0,0.00013698,2]
[422542614,1779047441000,-500.0,0.00013698,2]
[422542630,1779047441000,-500.0,0.00013698,2]
[422542610,1779047441000,-500.0,0.00013698,2]
[422542620,1779047441000,-500.0,0.00013698,2]
[422542618,1779047441000,-500.0,0.00013698,2]
[422542622,1779047441000,-500.0,0.00013698,2]
[422542624,1779047441000,-500.0,0.00013698,2]
[422542626,1779047441000,-500.0,0.00013698,2]
[422542628,1779047441000,-500.0,0.00013698,2]
[422542633,1779047441000,-500.0,0.00013698,2]
[422542635,1779047441000,-500.0,0.00013698,2]
[422542592,1779047441000,-500.0,0.00013698,2]
[422542632,1779047441000,-416.4182661,0.00013698,2]
[422542639,1779047441000,-500.0,0.00013698,2]
[422542637,1779047441000,-500.0,0.00013698,2]
[422542650,1779047441000,-500.0,0.00013698,2]
[422542608,1779047441000,-500.0,0.00013698,2]
[422542590,1779047441000,-162.16117544,0.00013698,2]
[422542580,1779047441000,-319.26,0.00013698,2]
[422542600,1779047441000,-500.0,0.00013698,2]
[422542562,1779047441000,-422.37630176,0.00013698,2]
[422542561,1779047441000,-500.0,0.00013698,2]
[422542563,1779047441000,-500.0,0.00013698,2]
[422542566,1779047441000,-500.0,0.00013698,2]
[422542565,1779047441000,-500.0,0.00013698,2]
[422542574,1779047441000,-500.0,0.00013698,2]
[422542572,1779047441000,-500.0,0.00013698,2]
[422542568,1779047441000,-500.0,0.00013698,2]
[422542648,1779047441000,-500.0,0.00013698,2]
[422542573,1779047441000,-500.0,0.00013698,2]
[422542567,1779047441000,-500.0,0.00013698,2]
[422542564,1779047441000,-500.0,0.00013698,2]
[422542569,1779047441000,-500.0,0.00013698,2]
[422542599,1779047441000,-500.0,0.00013698,2]
[422542570,1779047441000,-500.0,0.00013698,2]
[422542575,1779047441000,-500.0,0.00013698,2]
[422542577,1779047441000,-500.0,0.00013698,2]
[422542578,1779047441000,-500.0,0.00013698,2]
[422542579,1779047441000,-500.0,0.00013698,2]
[422542586,1779047441000,-500.0,0.00013698,2]
[422542587,1779047441000,-500.0,0.00013698,2]
[422542581,1779047441000,-500.0,0.00013698,2]
[422542583,1779047441000,-505.50097699,0.00013698,2]
[422542582,1779047441000,-507.84172079,0.00013698,2]
[422542585,1779047441000,-500.0,0.00013698,2]
[422542584,1779047441000,-549.15407829,0.00013698,2]
[422542589,1779047441000,-215.65,0.00013698,2]
[422542588,1779047441000,-500.0,0.00013698,2]
[422542576,1779047441000,-500.0,0.00013698,2]
[422542571,1779047441000,-500.0,0.00013698,2]
[422542645,1779047441000,-500.0,0.00013698,2]
[422542643,1779047441000,-594.53571005,0.00013698,2]
[422542720,1779047441000,-169.23,0.00014352,2]
[422542718,1779047441000,-169.23,0.00014352,2]
[422542729,1779047441000,-500.0,0.00014582,2]
[422542724,1779047441000,-169.41,0.00014496,2]
[422542726,1779047441000,-736.0,0.00014573,2]
[422542731,1779047441000,-4511.36206835,0.00014593,2]
[422542743,1779047441000,-169.36,0.00014787,2]
[422542741,1779047441000,-299.596604,0.00014773,2]
[422542745,1779047441000,-500.0,0.00014856,2]
[422542733,1779047441000,-232.414336,0.000147,2]
[422542749,1779047441000,-2000.0,0.00014895,2]
[422542737,1779047441000,-823.0,0.00014722,2]
[422542747,1779047441000,-16776.16048546,0.00014889,2]
[422542722,1779047441000,-166.66,0.00014384,2]
[422542739,1779047441000,-3292.0,0.00014771,2]
[422542751,1779047441000,-500.0,0.00014896,2]
[422542755,1779047441000,-192.02289105,0.000149,2]
[422542752,1779047441000,-10000.0,0.000149,2]
[422542757,1779047441000,-2100.0,0.000149,5]
[422542771,1779047441000,-500.0,0.00014999,2]
[422542641,1779047441000,-500.0,0.00013698,2]
[422542761,1779047441000,-157.36,0.00014953,2]
[422542765,1779047441000,-151.0,0.00014997,2]
[422542759,1779047441000,-606.7952,0.000149,2]
[422542769,1779047441000,-500.0,0.00014999,2]
[422542775,1779047441000,-500.0,0.00014999,2]
[422542767,1779047441000,-500.0,0.00014999,2]
[422542773,1779047441000,-281.43979114,0.00014999,2]
[422542735,1779047441000,-170.128628,0.000147,2]
[422542716,1779047441000,-16776.16048546,0.00014333,2]
[422542763,1779047441000,-151.0,0.00014997,2]
[422542710,1779047441000,-157.36,0.00014166,2]
[422542704,1779047441000,-250.0,0.00014,2]
[422542656,1779047441000,-500.0,0.00013698,2]
[422542652,1779047441000,-500.0,0.00013698,2]
[422542654,1779047441000,-500.0,0.00013698,2]
[422542662,1779047441000,-500.0,0.00013698,2]
[422542658,1779047441000,-500.0,0.00013698,2]
[422542670,1779047441000,-495.85491509,0.00013698,2]
[422542668,1779047441000,-500.0,0.00013698,2]
[422542666,1779047441000,-500.0,0.00013698,2]
[422542664,1779047441000,-500.0,0.00013698,2]
[422542672,1779047441000,-151.0,0.00013699,2]
[422542676,1779047441000,-200.0,0.00013699,2]
[422542674,1779047441000,-166.66,0.00013699,2]
[422542685,1779047441000,-151.0,0.00013699,2]
[422542660,1779047441000,-500.0,0.00013698,2]
[422542681,1779047441000,-151.0,0.00013699,2]
[422542712,1779047441000,-166.66,0.00014247,2]
[422542683,1779047441000,-156.395135,0.00013699,2]
[422542714,1779047441000,-500.0,0.00014308,2]
[422542706,1779047441000,-170.95,0.00014108,2]
[422542701,1779047441000,-2730.1767011,0.0001399,2]
[422542699,1779047441000,-166.66,0.00013973,2]
[422542708,1779047441000,-166.66,0.0001411,2]
[422542696,1779047441000,-2000.0,0.0001383,2]
[422542697,1779047441000,-166.66,0.00013836,2]
[422542688,1779047441000,-719.79,0.00013699,2]
[422542690,1779047441000,-782.09,0.00013699,2]
[422542694,1779047441000,-16776.16048546,0.00013778,2]
[422542692,1779047441000,-880.95,0.000137,2]
[422542679,1779047441000,-2500.0,0.00013699,2]
[422542844,1779047442000,-202.092242,0.00015,2]
[422542839,1779047442000,-202.092242,0.00015,2]
[422542854,1779047442000,-900.0,0.00015068,2]
[422542837,1779047442000,-202.092242,0.00015,2]
[422542846,1779047442000,-151.0,0.00015,2]
[422542834,1779047442000,-151.0,0.00015,2]
[422542841,1779047442000,-202.092242,0.00015,2]
[422542832,1779047442000,-151.0,0.00015,2]
[422542848,1779047442000,-151.0,0.00015,2]
[422542890,1779047442000,-2000.0,0.00015213,2]
[422542867,1779047442000,-285.93167,0.00015068,2]
[422542856,1779047442000,-285.93167,0.00015068,2]
[422542858,1779047442000,-285.93167,0.00015068,2]
[422542861,1779047442000,-285.93167,0.00015068,2]
[422542869,1779047442000,-285.93167,0.00015068,2]
[422542871,1779047442000,-285.93167,0.00015068,2]
[422542865,1779047442000,-285.93167,0.00015068,2]
[422542863,1779047442000,-285.93167,0.00015068,2]
[422542878,1779047442000,-151.0,0.00015068,2]
[422542830,1779047442000,-151.0,0.00015,2]
[422542852,1779047442000,-151.0,0.00015,2]
[422542817,1779047442000,-151.0,0.00015,2]
[422542798,1779047442000,-142493.96866023,0.00015,2]
[422542813,1779047442000,-151.0,0.00015,2]
[422542777,1779047442000,-500.0,0.00014999,2]
[422542784,1779047442000,-500.0,0.00014999,2]
[422542778,1779047442000,-500.0,0.00014999,2]
[422542782,1779047442000,-500.0,0.00014999,2]
[422542780,1779047442000,-500.0,0.00014999,2]
[422542786,1779047442000,-492.66,0.00014999,2]
[422542788,1779047442000,-1443254.16002623,0.00015,2]
[422542793,1779047442000,-312.8,0.00015,2]
[422542803,1779047442000,-427.90238331,0.00015,2]
[422542816,1779047442000,-151.0,0.00015,2]
[422542801,1779047442000,-2076.43774024,0.00015,2]
[422542796,1779047442000,-30101.03951096,0.00015,2]
[422542807,1779047442000,-151.0,0.00015,2]
[422542824,1779047442000,-384.259255,0.00015,2]
[422542822,1779047442000,-384.259255,0.00015,2]
[422542811,1779047442000,-151.0,0.00015,2]
[422542826,1779047442000,-384.259255,0.00015,2]
[422542820,1779047442000,-384.259255,0.00015,2]
[422542809,1779047442000,-151.0,0.00015,2]
[422542828,1779047442000,-151.0,0.00015,2]
[422542805,1779047442000,-151.0,0.00015,2]
[422542894,1779047442000,-1517.64,0.000153,2]
[422542850,1779047442000,-151.0,0.00015,2]
[422542897,1779047442000,-470.20807044,0.000154,2]
[422542941,1779047442000,-384.259255,0.00016096,2]
[422542955,1779047442000,-285.93167,0.00016096,2]
[422542949,1779047442000,-285.93167,0.00016096,2]
[422542947,1779047442000,-384.259255,0.00016096,2]
[422542944,1779047442000,-384.259255,0.00016096,2]
[422542957,1779047442000,-285.93167,0.00016096,2]
[422542972,1779047442000,-202.092242,0.00016096,2]
[422542960,1779047442000,-151.0,0.00016096,2]
[422542974,1779047442000,-202.092242,0.00016096,2]
[422542953,1779047442000,-285.93167,0.00016096,2]
[422542963,1779047442000,-151.0,0.00016096,2]
[422542969,1779047442000,-202.092242,0.00016096,2]
[422542979,1779047442000,-151.0,0.00016096,2]
[422542967,1779047442000,-151.0,0.00016096,2]
[422542965,1779047442000,-151.0,0.00016096,2]
[422542981,1779047442000,-151.0,0.00016096,2]
[422542987,1779047442000,-151.0,0.00016096,2]
[422542984,1779047442000,-151.0,0.00016096,2]
[422542991,1779047442000,-151.0,0.00016096,2]
[422542994,1779047442000,-233.331286,0.00016096,2]
[422542976,1779047442000,-202.092242,0.00016096,2]
[422542939,1779047442000,-384.259255,0.00016096,2]
[422542883,1779047442000,-151.0,0.00015068,2]
[422542935,1779047442000,-151.0,0.00016096,2]
[422542885,1779047442000,-175.81059483,0.0001513,2]
[422542899,1779047442000,-16776.16048546,0.00015444,2]
[422542888,1779047442000,-170.95,0.00015183,2]
[422542901,1779047442000,-157.36,0.0001574,2]
[422542900,1779047442000,-1237.39722377,0.000155,2]
[422542903,1779047442000,-443.07648,0.00015774,2]
[422542908,1779047442000,-1928.64335305,0.00015877,2]
[422542906,1779047442000,-2270.40998677,0.00015807,2]
[422542902,1779047442000,-226.647048,0.00015774,2]
[422542904,1779047442000,-880.95,0.000158,2]
[422542937,1779047442000,-151.0,0.00016096,2]
[422542910,1779047442000,-150.0,0.000159,2]
[422542915,1779047442000,-1252.0,0.0001596,2]
[422542926,1779047442000,-169.36,0.00016007,2]
[422542930,1779047442000,-318.59405335,0.00016086,2]
[422542917,1779047442000,-491.22,0.00015962,2]
[422542928,1779047442000,-1502.36,0.00016029,2]
[422542933,1779047442000,-151.0,0.00016096,2]
[422542924,1779047442000,-400.90550288,0.00016,2]
[422542920,1779047442000,-300.0,0.00016,2]
[422542922,1779047442000,-16776.16048546,0.00016,2]
[422542913,1779047442000,-6202.73580122,0.000159,2]
[422542997,1779047443000,-61177.88462746,0.00016096,2]
[422543012,1779047443000,-349.00274533,0.00016096,2]
[422543015,1779047443000,-3549.4941997,0.00016096,2]
[422543039,1779047443000,-1069.46357953,0.00016096,2]
[422543000,1779047443000,-3448.25219006,0.00016096,2]
[422543083,1779047443000,-30.31274811,0.0001373,2]
[422543041,1779047443000,-412.3305553,0.00016096,2]
[422543098,1779047443000,-2589.57115365,0.00016096,2]
[422543093,1779047443000,-796.31198527,0.0001373,2]
[422543096,1779047443000,-3099.94780929,0.00016096,2]
[422543473,1779047446000,-7053.23619927,0.00016096,2]
[422543443,1779047446000,-500.0,0.00012992,2]
[422543445,1779047446000,-98152.0,0.00016096,2]
[422543436,1779047446000,-500.0,0.0001217,2]
[422543439,1779047446000,-500.0,0.00012444,2]
[422543441,1779047446000,-500.0,0.00012718,2]
[422543553,1779047449000,150.0,0.000145,120]
[422543554,1779047463000,368894.48418682,0.00011,2]
[422543556,1779047517000,2000.0,0.0003013,120]
[422543558,1779047561000,2000.0,0.0003013,120]
[422543559,1779047638000,150.0,0.000148,120]
[422543561,1779047683000,780.39277055,0.00030136,120]
[422543562,1779047705000,1000.0,0.000271,120]
[422543565,1779047825000,150.0,0.000148,120]
[422543566,1779047848000,163.05696925,0.00025465,120]
[422543570,1779047968000,159.10976001,0.00025465,120]
[422543571,1779048007000,167.0,0.00028337,120]
[422543572,1779048009000,167.0,0.00029754,120]
[422543573,1779048013000,150.0,0.000148,120]
[422543574,1779048028000,177.0,0.00026962,120]
[422543587,1779048199000,186.1,0.000148,120]
[422543588,1779048233000,262.58191865,0.000101,2]
[422543590,1779048297000,3156.14,0.00030137,120]
[422543591,1779048303000,169.0,0.00030018,120]
[422543594,1779048436000,200.0,0.000106,3]
[422543595,1779048438000,400.0,0.000107,3]
[422543596,1779048440000,600.0,0.000108,3]
[422543597,1779048442000,900.0,0.000109,3]
[422543599,1779048469000,500.0,0.00029452,120]
[422543603,1779048540000,1000.0,0.00030136,120]
[422543604,1779048548000,2008.888137,7.945e-05,2]
[422543606,1779048605000,167.0,0.00028566,120]
[422543608,1779048632000,-157.37,0.00010461,2]
[422543609,1779048632000,-751.18,0.00010601,2]
[422543616,1779048632000,-101389.51227432,0.00010897,2]
[422543612,1779048632000,-1200.0,0.00010896,2]
[422543614,1779048632000,-261.415,0.00010897,2]
[422543613,1779048632000,-445.60351729,0.00010897,2]
[422543615,1779048632000,-1582.56,0.00010897,2]
[422543611,1779048632000,-43.29024271,0.00010896,2]
[422543618,1779048632000,-1800.0,0.00010897,2]
[422543620,1779048632000,-645.55505471,0.00010897,2]
[422543610,1779048632000,-256.70975729,0.00010896,2]
[422543707,1779048638000,-500.0,0.00010896,2]
[422543711,1779048638000,-1209.25815459,0.00010897,2]
[422543710,1779048638000,-238.24377584,0.00010896,2]
[422543708,1779048638000,-500.0,0.00010896,2]
[422543709,1779048638000,-500.0,0.00010896,2]
[422543721,1779048640000,-150.0,0.00010953,2]
[422543736,1779048640000,-212.39603557,0.0001099,2]
[422543724,1779048640000,-186.2,0.00010959,2]
[422543725,1779048640000,-24999.99,0.00010959,2]
[422543723,1779048640000,-4135.15720082,0.00010958,2]
[422543722,1779048640000,-417.72054126,0.00010954,2]
[422543719,1779048640000,-33179.6252,0.000109,2]
[422543714,1779048640000,-721.44356646,0.00010897,2]
[422543718,1779048640000,-4991.03738533,0.000109,2]
[422543716,1779048640000,-1653.12287408,0.000109,2]
[422543715,1779048640000,-1030610.42820517,0.00010897,2]
[422543713,1779048640000,-1138.44432746,0.00010897,2]
[422543712,1779048640000,-551.0831556,0.000108,2]
[422543734,1779048640000,-152.0,0.00010976,2]
[422543717,1779048640000,-5000.0,0.000109,2]
[422543726,1779048640000,-999.99,0.00010959,2]
[422543720,1779048640000,-212.39603557,0.00010949,2]
[422543730,1779048640000,-9999.99,0.00010959,2]
[422543745,1779048640000,-332.94633646,0.00010999,2]
[422543743,1779048640000,-500.0,0.00010999,2]
[422543739,1779048640000,-182.189,0.00010996,2]
[422543740,1779048640000,-151.0,0.00010997,2]
[422543742,1779048640000,-210.65350281,0.00010999,2]
[422543741,1779048640000,-150.99,0.00010998,2]
[422543727,1779048640000,-299.99,0.00010959,2]
[422543744,1779048640000,-500.0,0.00010999,2]
[422543738,1779048640000,-1230.192,0.00010996,2]
[422543728,1779048640000,-4999.99,0.00010959,2]
[422543731,1779048640000,-5266.1,0.00010959,2]
[422543732,1779048640000,-14170.89,0.00010959,2]
[422543735,1779048640000,-2736.69,0.00010976,2]
[422543729,1779048640000,-9999.99,0.00010959,2]
[422543733,1779048640000,-606.7952,0.00010962,2]
[422543737,1779048640000,-152.0,0.00010992,2]
[422543751,1779048641000,-1179327.81156025,0.00011,2]
[422543747,1779048641000,-500.0,0.00010999,2]
[422543749,1779048641000,-243.02405372,0.00010999,2]
[422543754,1779048641000,-1221.94,0.00011,2]
[422543788,1779048641000,-693.27386168,0.00011,2]
[422543790,1779048641000,-459.67,0.00011,2]
[422543746,1779048641000,-500.0,0.00010999,2]
[422544108,1779048643000,-911240.80295375,0.00011,2]
[422544103,1779048643000,-0.00914005,0.00011,2]
[422544106,1779048643000,-3914.82075917,0.00011,2]
[422544113,1779048643000,-10081.27111997,0.00011,2]
[422544327,1779048646000,-500.0,0.00011338,2]
[422544326,1779048646000,-170.42,0.00011338,2]
[422544323,1779048646000,-208.48490792,0.00011066,2]
[422544324,1779048646000,-2215.13749384,0.00011099,2]
[422544320,1779048646000,-247.08315559,0.00010881,2]
[422544325,1779048646000,-157.37,0.00011209,2]
[422544322,1779048646000,-215.0785988,0.00011066,2]
[422544329,1779048646000,-156.72,0.00011442,2]
[422544321,1779048646000,-393060.40060513,0.00011,2]
[422544328,1779048646000,-2215.13749379,0.00011344,2]
[422544331,1779048646000,-546.04,0.00011544,2]
[422544319,1779048646000,-304.0,0.00010881,2]
[422544330,1779048646000,-5000.0,0.00011507,2]
[422544341,1779048646000,-150.0,0.00011584,2]
[422544343,1779048646000,-150.0,0.00011584,2]
[422544342,1779048646000,-150.0,0.00011584,2]
[422544339,1779048646000,-500.0,0.00011584,2]
[422544340,1779048646000,-150.0,0.00011584,2]
[422544337,1779048646000,-150.0,0.00011584,2]
[422544338,1779048646000,-500.0,0.00011584,2]
[422544334,1779048646000,-150.0,0.00011584,2]
[422544333,1779048646000,-241.21762394,0.00011584,2]
[422544332,1779048646000,-150.0,0.00011584,2]
[422544335,1779048646000,-150.0,0.00011584,2]
[422544336,1779048646000,-500.0,0.00011584,2]
[422544363,1779048647000,-2215.13749379,0.00012233,2]
[422544362,1779048647000,-169.41,0.00012131,2]
[422544361,1779048647000,-546.04,0.00012121,2]
[422544355,1779048647000,-546.04,0.00011833,2]
[422544365,1779048647000,-173.07,0.00012329,2]
[422544377,1779048647000,-587.0,0.0001316,2]
[422544368,1779048647000,-311.18060663,0.000125,2]
[422544370,1779048647000,-546.04,0.00012699,2]
[422544374,1779048647000,-5411.57887691,0.0001305,2]
[422544372,1779048647000,-4991.03738529,0.00012813,2]
[422544364,1779048647000,-170.42,0.00012274,2]
[422544367,1779048647000,-2000.0,0.00012429,2]
[422544369,1779048647000,-2215.13749379,0.00012678,2]
[422544360,1779048647000,-255.0,0.00011994,2]
[422544352,1779048647000,-165.34049564,0.00011704,2]
[422544356,1779048647000,-1100.0,0.000119,4]
[422544359,1779048647000,-1680.0,0.00011986,2]
[422544358,1779048647000,-420.0,0.00011975,2]
[422544354,1779048647000,-768.67800458,0.00011789,2]
[422544350,1779048647000,-500.0,0.00011704,2]
[422544351,1779048647000,-500.0,0.00011704,2]
[422544349,1779048647000,-500.0,0.00011704,2]
[422544348,1779048647000,-150.0,0.00011584,2]
[422544346,1779048647000,-150.0,0.00011584,2]
[422544345,1779048647000,-243.06675581,0.00011584,2]
[422544347,1779048647000,-299.93318737,0.00011584,2]
[422544344,1779048647000,-150.0,0.00011584,2]
[422544353,1779048647000,-1446.45948921,0.00011789,2]
[422544357,1779048647000,-157.37,0.00011956,2]
[422544366,1779048647000,-546.04,0.0001241,2]
[422544376,1779048647000,-433.0,0.00013133,2]
[422544373,1779048647000,-5173.23734276,0.00013,2]
[422544375,1779048647000,-2215.13749379,0.00013122,2]
[422544413,1779048647000,-150.0,0.00013649,2]
[422544415,1779048647000,-118.22998164,0.00013657,2]
[422544411,1779048647000,-275.56667929,0.00013647,2]
[422544399,1779048647000,-275.56667929,0.00013617,2]
[422544392,1779048647000,-150.0,0.00013586,2]
[422544395,1779048647000,-275.56667929,0.00013586,2]
[422544407,1779048647000,-275.56667929,0.00013632,2]
[422544397,1779048647000,-275.56667929,0.00013602,2]
[422544409,1779048647000,-150.0,0.00013642,2]
[422544390,1779048647000,-150.0,0.00013586,2]
[422544393,1779048647000,-150.0,0.00013586,2]
[422544401,1779048647000,-150.0,0.00013618,2]
[422544403,1779048647000,-150.0,0.00013621,2]
[422544384,1779048647000,-150.0,0.00013586,2]
[422544391,1779048647000,-150.0,0.00013586,2]
[422544387,1779048647000,-150.0,0.00013586,2]
[422544388,1779048647000,-150.0,0.00013586,2]
[422544383,1779048647000,-2215.13749379,0.00013567,2]
[422544385,1779048647000,-150.0,0.00013586,2]
[422544405,1779048647000,-150.0,0.00013627,2]
[422544386,1779048647000,-150.0,0.00013586,2]
[422544389,1779048647000,-150.0,0.00013586,2]
[422544382,1779048647000,-228.22051,0.00013534,2]
[422544380,1779048647000,-157.37,0.0001345,2]
[422544378,1779048647000,-2351.0,0.00013184,2]
[422544379,1779048647000,-170.42,0.00013209,2]
[422544381,1779048647000,-179.728558,0.00013509,2]
[422544371,1779048647000,-157.37,0.00012703,2]
[422544424,1779049030000,951.19,5.85e-05,2]
[422544426,1779049030000,318.74416554,6.442e-05,2]
[422544427,1779049030000,632.44583446,6.442e-05,2]
[422544425,1779049030000,951.19,6.146e-05,2]
[422544429,1779049031000,951.19,7.034e-05,2]
[422544428,1779049031000,951.19,6.738e-05,2]
[422544431,1779049031000,951.19,7.625e-05,2]
[422544432,1779049031000,-332.73178978,0.00010361,2]
[422544430,1779049031000,951.19,7.329e-05,2]
[422544438,1779049032000,743.22260792,9.104e-05,2]
[422544439,1779049032000,207.96739208,9.104e-05,2]
[422544437,1779049032000,951.19,8.809e-05,2]
[422544436,1779049032000,951.19,8.513e-05,2]
[422544435,1779049032000,951.19,8.217e-05,2]
[422544434,1779049032000,895.80161327,7.921e-05,2]
[422544433,1779049032000,55.38838673,7.921e-05,2]
[422544440,1779049033000,951.19,9.4e-05,2]
[422544441,1779049033000,951.19,9.696e-05,2]
[422544442,1779049033000,-41.08361322,0.00010361,2]
[422544444,1779049033000,951.19,9.992e-05,2]
[422544443,1779049033000,-110.08638678,0.00010414,2]
[422544445,1779049033000,951.19,0.00010288,2]
[422544447,1779049122000,150.0,0.000143,120]